fUST/lending_fUST_20250322
["ID","MTS","AMOUNT","RATE_DAILY","PERIOD"]
[356509494,1742587834217,-500.0,0.00028973,5]
[356509495,1742587834226,-501.28920938,0.00028973,5]
[356509496,1742587834235,-166.49638332,0.00028973,2]
[356509497,1742587834245,-500.0,0.00028973,5]
[356509498,1742587834254,-500.0,0.00028973,5]
[356509499,1742587834264,-500.0,0.00028973,5]
[356509500,1742587834273,-609.39565207,0.00028973,5]
[356509501,1742587834282,-500.0,0.00028973,5]
[356509502,1742587834291,-500.0,0.00028973,5]
[356509503,1742587834300,-500.0,0.00028973,5]
[356509504,1742587834310,-160.88370894,0.00028973,5]
[356509505,1742587834319,-260.64472827,0.00028973,5]
[356509506,1742587834328,-400.722311,0.00028973,7]
[356509507,1742587834338,-400.722311,0.00028973,7]
[356509508,1742587834348,-151.0,0.00028973,7]
[356509509,1742587834358,-151.0,0.00028973,7]
[356509510,1742587834367,-180.820304,0.00028973,7]
[356509511,1742587834376,-180.820304,0.00028973,7]
[356509512,1742587834386,-151.0,0.00028973,7]
[356509513,1742587834395,-863.802533,0.00028973,2]
[356509514,1742587834404,-863.802533,0.00028973,2]
[356509515,1742587834414,-863.802533,0.00028973,2]
[356509516,1742587834423,-863.802533,0.00028973,2]
[356509517,1742587834433,-184.501176,0.00028973,7]
[356509518,1742587834444,-184.501176,0.00028973,7]
[356509519,1742587834453,-184.501176,0.00028973,7]
[356509520,1742587834462,-184.501176,0.00028973,7]
[356509521,1742587834472,-2000.0,0.0002898,7]
[356509522,1742587834481,-400.722311,0.0002898,7]
[356509523,1742587834490,-400.722318,0.0002898,7]
[356509524,1742587834499,-863.802533,0.0002899,2]
[356509525,1742587834509,-863.80254224,0.0002899,2]
[356509526,1742587834518,-184.501176,0.0002899,7]
[356509527,1742587834527,-184.501178,0.0002899,7]
[356509528,1742587834537,-929399.19070799,0.00029,2]
[356509529,1742587834565,-367732.56972997,0.00029,2]
[356509588,1742587838242,-1151.8088111,0.0002789,2]
[356509589,1742587838253,-394.6571137,0.00028129,4]
[356509590,1742587838263,-3120.63322598,0.00029,2]
[356509643,1742588903256,-207.82028838,0.000238,14]
[356509644,1742588912547,-190.0,0.00023799,2]
[356509671,1742589032474,-300.0,0.00023799,2]
[356509672,1742589032484,-16.10324119,0.00023799,2]
[356509673,1742589032495,-36064.91668448,0.000238,14]
[356509674,1742589032505,-4732.03920943,0.0002469,2]
[356509675,1742589032514,-33364.8833485,0.0002479,2]
[356509676,1742589032524,-199.81374303,0.000249,4]
[356509677,1742589032533,-1051.1039887,0.00025,2]
[356509679,1742589032544,-2589.00525836,0.00025,2]
[356509681,1742589032553,-205.42094175,0.00025,2]
[356509682,1742589032563,-10364.0,0.00025,2]
[356509683,1742589032572,-836.20622329,0.00025,2]
[356509684,1742589032582,-449.0,0.000255,2]
[356509685,1742589032591,-420.0,0.00025814,2]
[356509686,1742589032601,-152.0,0.00025878,2]
[356509687,1742589032610,-199.81374303,0.00026,4]
[356509688,1742589032620,-514.98933531,0.00026,2]
[356509689,1742589032630,-19900.0,0.00026,2]
[356509690,1742589032639,-4732.03920941,0.00026119,2]
[356509691,1742589032649,-193.0,0.0002646,2]
[356509692,1742589032659,-3641.06722801,0.00027,2]
[356509693,1742589032673,-337.99475018,0.00027,2]
[356509694,1742589032682,-246.0,0.00027056,2]
[356509695,1742589032692,-199.81374303,0.000271,4]
[356509696,1742589032702,-24900.0,0.0002739,2]
[356509697,1742589032712,-500.0,0.00027397,5]
[356509698,1742589032721,-600.0,0.00027484,2]
[356509699,1742589032732,-44794.43166328,0.000275,2]
[356509700,1742589032741,-500.0,0.000275,2]
[356509701,1742589032750,-622.2,0.00027539,2]
[356509702,1742589032760,-645.2214,0.00027594,2]
[356509703,1742589032770,-314.0,0.00027665,2]
[356509704,1742589032779,-160.0,0.00027982,2]
[356509705,1742589032789,-3949.18765954,0.0002799,2]
[356509706,1742589032798,-500.0,0.00028,2]
[356509707,1742589032808,-587.0,0.00028,2]
[356509708,1742589032817,-295.9928353,0.00028129,4]
[356509709,1742589032826,-199.81374303,0.000282,5]
[356509710,1742589032836,-1914.0,0.00028248,2]
[356509711,1742589032846,-1367.348,0.00028248,2]
[356509712,1742589032855,-500.0,0.000285,2]
[356509713,1742589032864,-418.02116171,0.00028632,2]
[356509714,1742589032874,-834.1406796,0.00028632,2]
[356509715,1742589032883,-160.0,0.00028637,2]
[356509716,1742589032893,-659.0,0.000287,2]
[356509717,1742589032902,-20646.83086129,0.0002871,2]
[356509718,1742589032912,-1000.0,0.00028767,5]
[356509719,1742589032923,-1151.80881108,0.000288,2]
[356509720,1742589032932,-43576.8133737,0.0002888,2]
[356509721,1742589032942,-151.0,0.00028883,2]
[356509722,1742589032951,-1000.0,0.00028883,2]
[356509723,1742589032961,-10000.0,0.00028883,2]
[356509724,1742589032971,-217884.066868,0.0002889,2]
[356509725,1742589032986,-3000.0,0.000289,2]
[356509726,1742589032996,-500.0,0.000289,2]
[356509727,1742589033005,-222000.0,0.000289,2]
[356509728,1742589033015,-408.38656833,0.000289,2]
[356509729,1742589033024,-151.0,0.000289,7]
[356509730,1742589033034,-43576.8133737,0.0002899,2]
[356509731,1742589033044,-632.70664722,0.00028999,2]
[356509732,1742589033054,-99092.49426906,0.00029,2]
[356509733,1742589033064,-500.0,0.00029,2]
[356509734,1742589033075,-151.0,0.00029,7]
[356509735,1742589033085,-7870.92,0.00029,2]
[356509736,1742589033096,-1000.0,0.00029044,6]
[356509737,1742589033106,-194.76706404,0.00029068,2]
[356509738,1742589033117,-500.0,0.00029109,7]
[356509739,1742589033126,-1291.0,0.00029109,7]
[356509740,1742589033136,-500.0,0.00029109,7]
[356509741,1742589033146,-150.15,0.00029109,2]
[356509742,1742589033157,-631.0,0.00029109,7]
[356509743,1742589033167,-500.0,0.00029109,7]
[356509744,1742589033177,-500.0,0.00029109,2]
[356509745,1742589033187,-150.15,0.00029109,7]
[356509746,1742589033197,-150.15,0.00029109,2]
[356509747,1742589033207,-150.15,0.00029109,7]
[356509748,1742589033217,-269.17283388,0.00029109,7]
[356509749,1742589033227,-500.0,0.00029109,7]
[356509750,1742589033237,-150.15,0.00029109,7]
[356509751,1742589033250,-503.61877042,0.00029136,7]
[356509752,1742589033262,-1291.0,0.00029136,7]
[356509753,1742589033273,-500.0,0.00029136,7]
[356509754,1742589033282,-631.0,0.00029136,7]
[356509755,1742589033292,-500.0,0.00029136,7]
[356509756,1742589033303,-500.0,0.00029136,2]
[356509757,1742589033312,-150.15,0.00029136,7]
[356509758,1742589033322,-150.15,0.00029136,7]
[356509759,1742589033332,-500.0,0.00029136,7]
[356509760,1742589033342,-1291.0,0.00029164,7]
[356509761,1742589033351,-500.0,0.00029164,7]
[356509762,1742589033361,-631.0,0.00029164,7]
[356509763,1742589033371,-160.0,0.00029164,7]
[356509764,1742589033380,-872.11199544,0.00029164,7]
[356509765,1742589033390,-500.0,0.00029164,2]
[356509766,1742589033399,-150.15,0.00029164,7]
[356509767,1742589033409,-150.15,0.00029164,7]
[356509768,1742589033420,-500.0,0.00029164,7]
[356509769,1742589033430,-1000.0,0.00029181,6]
[356509770,1742589033439,-151.0,0.00029191,7]
[356509771,1742589033450,-1291.0,0.00029191,7]
[356509772,1742589033460,-500.0,0.00029191,7]
[356509773,1742589033469,-631.0,0.00029191,7]
[356509774,1742589033478,-500.0,0.00029191,2]
[356509775,1742589033488,-279.26477762,0.00029191,7]
[356509776,1742589033497,-150.15,0.00029191,7]
[356509777,1742589033506,-527.60724417,0.00029191,7]
[356509778,1742589033515,-1291.0,0.00029219,7]
[356509779,1742589033525,-500.0,0.00029219,7]
[356509780,1742589033534,-631.0,0.00029219,7]
[356509781,1742589033543,-500.0,0.00029219,2]
[356509782,1742589033553,-213.21233579,0.00029219,7]
[356509783,1742589033563,-1291.0,0.00029246,7]
[356509784,1742589033572,-500.0,0.00029246,7]
[356509785,1742589033581,-631.0,0.00029246,7]
[356509786,1742589033591,-500.0,0.00029246,2]
[356509787,1742589033600,-1291.0,0.00029273,7]
[356509788,1742589033609,-500.0,0.00029273,7]
[356509789,1742589033619,-631.0,0.00029273,7]
[356509790,1742589033628,-500.0,0.00029273,2]
[356509791,1742589033641,-199.81374303,0.000293,5]
[356509792,1742589033650,-1291.0,0.00029301,7]
[356509793,1742589033660,-500.0,0.00029301,7]
[356509794,1742589033670,-631.0,0.00029301,7]
[356509795,1742589033680,-500.0,0.00029301,2]
[356509796,1742589033690,-1000.0,0.00029318,6]
[356509797,1742589033700,-1291.0,0.00029328,7]
[356509798,1742589033710,-500.0,0.00029328,7]
[356509799,1742589033720,-631.0,0.00029328,7]
[356509800,1742589033729,-500.0,0.00029328,2]
[356509801,1742589033738,-1291.0,0.00029356,7]
[356509802,1742589033748,-500.0,0.00029356,7]
[356509803,1742589033758,-631.0,0.00029356,7]
[356509804,1742589033767,-500.0,0.00029356,2]
[356509805,1742589033777,-500.0,0.00029382,2]
[356509806,1742589033786,-515.97186591,0.00029382,5]
[356509807,1742589033796,-500.0,0.00029382,5]
[356509808,1742589033806,-619.34887469,0.00029382,5]
[356509809,1742589033816,-500.0,0.00029382,5]
[356509810,1742589033825,-531.61764438,0.00029382,5]
[356509811,1742589033835,-1291.0,0.00029383,7]
[356509812,1742589033844,-500.0,0.00029383,7]
[356509813,1742589033854,-631.0,0.00029383,7]
[356509814,1742589033863,-500.0,0.00029383,2]
[356509815,1742589033872,-300.0,0.000294,14]
[356509816,1742589033882,-1291.0,0.0002941,7]
[356509817,1742589033892,-500.0,0.0002941,7]
[356509818,1742589033902,-631.0,0.0002941,7]
[356509819,1742589033911,-500.0,0.0002941,2]
[356509820,1742589033922,-10000.0,0.00029431,2]
[356509821,1742589033934,-1291.0,0.00029438,7]
[356509822,1742589033944,-500.0,0.00029438,7]
[356509823,1742589033953,-631.0,0.00029438,7]
[356509824,1742589033963,-500.0,0.00029438,2]
[356509825,1742589033973,-1000.0,0.00029455,6]
[356509826,1742589033983,-1291.0,0.00029465,7]
[356509827,1742589033992,-500.0,0.00029465,7]
[356509828,1742589034002,-631.0,0.00029465,7]
[356509829,1742589034012,-500.0,0.00029465,2]
[356509830,1742589034021,-1291.0,0.00029493,7]
[356509831,1742589034031,-500.0,0.00029493,7]
[356509832,1742589034041,-631.0,0.00029493,7]
[356509833,1742589034051,-500.0,0.00029493,2]
[356509834,1742589034060,-665.42,0.000295,2]
[356509835,1742589034069,-500.0,0.000295,2]
[356509836,1742589034079,-1291.0,0.0002952,7]
[356509837,1742589034088,-500.0,0.0002952,7]
[356509838,1742589034098,-631.0,0.0002952,7]
[356509839,1742589034107,-500.0,0.0002952,2]
[356509840,1742589034116,-1291.0,0.00029547,7]
[356509841,1742589034126,-500.0,0.00029547,7]
[356509842,1742589034135,-631.0,0.00029547,7]
[356509843,1742589034145,-500.0,0.00029547,2]
[356509844,1742589034154,-1291.0,0.00029575,7]
[356509845,1742589034164,-500.0,0.00029575,7]
[356509846,1742589034174,-631.0,0.00029575,7]
[356509847,1742589034183,-500.0,0.00029575,2]
[356509848,1742589034193,-1000.0,0.00029592,6]
[356509849,1742589034203,-1291.0,0.00029602,7]
[356509850,1742589034212,-516.12460307,0.00029602,7]
[356509851,1742589034222,-631.0,0.00029602,7]
[356509852,1742589034231,-500.0,0.00029602,2]
[356509853,1742589034240,-1298.87806696,0.0002963,7]
[356509854,1742589034253,-647.85768921,0.0002963,7]
[356509855,1742589034263,-500.0,0.0002963,2]
[356509856,1742589034273,-500.0,0.0002965,5]
[356509857,1742589034283,-500.0,0.00029657,2]
[356509858,1742589034293,-500.0,0.00029684,2]
[356509859,1742589034303,-500.0,0.00029712,2]
[356509860,1742589034312,-1000.0,0.00029729,6]
[356509861,1742589034322,-2200.0,0.00029729,2]
[356509862,1742589034331,-500.0,0.00029739,2]
[356509863,1742589034341,-500.0,0.0002975,5]
[356509864,1742589034350,-500.0,0.0002975,5]
[356509865,1742589034359,-500.0,0.0002975,5]
[356509866,1742589034369,-502.8339842,0.0002975,5]
[356509867,1742589034379,-500.0,0.0002975,5]
[356509868,1742589034388,-500.0,0.0002975,5]
[356509869,1742589034397,-394.29866765,0.0002975,5]
[356509870,1742589034407,-152.23331984,0.0002975,5]
[356509871,1742589034417,-624.79332172,0.0002975,5]
[356509872,1742589034426,-500.0,0.0002975,5]
[356509873,1742589034436,-420.27593344,0.0002975,5]
[356509874,1742589034445,-588.29675817,0.0002975,5]
[356509875,1742589034454,-500.0,0.0002975,5]
[356509876,1742589034464,-500.0,0.0002975,3]
[356509877,1742589034473,-500.0,0.0002975,5]
[356509878,1742589034482,-500.0,0.0002975,5]
[356509879,1742589034491,-405.07508102,0.0002975,5]
[356509880,1742589034501,-500.0,0.0002975,5]
[356509881,1742589034510,-528.7791108,0.0002975,5]
[356509882,1742589034519,-500.0,0.0002975,5]
[356509883,1742589034529,-500.0,0.0002975,5]
[356509884,1742589034539,-500.0,0.0002975,5]
[356509885,1742589034548,-500.0,0.0002975,5]
[356509886,1742589034558,-500.0,0.0002975,5]
[356509887,1742589034567,-500.0,0.0002975,5]
[356509888,1742589034577,-267.20311115,0.0002975,5]
[356509889,1742589034587,-500.0,0.0002975,5]
[356509890,1742589034596,-500.0,0.0002975,5]
[356509891,1742589034606,-419.20976496,0.0002975,5]
[356509892,1742589034616,-500.0,0.0002975,5]
[356509893,1742589034625,-190.01559417,0.0002975,5]
[356509894,1742589034635,-501.17725434,0.0002975,2]
[356509895,1742589034644,-500.0,0.0002975,5]
[356509896,1742589034654,-500.0,0.0002975,5]
[356509897,1742589034663,-500.0,0.0002975,5]
[356509898,1742589034674,-452.63766718,0.0002975,5]
[356509899,1742589034683,-500.0,0.00029767,2]
[356509900,1742589034692,-500.0,0.00029767,5]
[356509901,1742589034702,-465.38791258,0.00029767,5]
[356509902,1742589034711,-541.63600597,0.00029767,5]
[356509903,1742589034721,-500.0,0.00029767,5]
[356509904,1742589034730,-423.22379258,0.00029769,5]
[356509905,1742589034739,-500.0,0.00029769,5]
[356509906,1742589035011,-501.39272971,0.00029769,5]
[356509907,1742589035034,-500.0,0.00029769,5]
[356509908,1742589035044,-500.0,0.00029769,5]
[356509909,1742589035055,-266.64854005,0.00029769,5]
[356509910,1742589035064,-500.0,0.00029783,5]
[356509911,1742589035074,-784.63098398,0.00029794,2]
[356509912,1742589035084,-1000.0,0.00029866,6]
[356509913,1742589035093,-959.0,0.00029866,6]
[356509914,1742589035103,-503.25457368,0.00029883,5]
[356509915,1742589035112,-173.45859824,0.0002989,2]
[356509916,1742589035122,-500.0,0.00029978,5]
[356509917,1742589035132,-500.0,0.00029978,5]
[356509918,1742589035141,-500.0,0.00029978,5]
[356509919,1742589035150,-500.0,0.00029978,5]
[356509920,1742589035160,-160.08964393,0.00029978,5]
[356509921,1742589035169,-500.0,0.00029978,5]
[356509922,1742589035178,-597.66753732,0.00029978,2]
[356509923,1742589035188,-575.4996627,0.00029978,5]
[356509924,1742589035197,-207.270387,0.00029978,7]
[356509925,1742589035206,-10000.0,0.00029979,2]
[356509926,1742589035216,-151.0,0.0002999,7]
[356509927,1742589035225,-151.0,0.0002999,7]
[356509928,1742589035235,-299.99999,0.0003,7]
[356509929,1742589035244,-99432.74710858,0.0003,120]
[356509930,1742589035256,-3159.52717592,0.0003,120]
[356509931,1742589035266,-3449.07561957,0.0003,2]
[356509932,1742589035275,-151.0,0.0003,7]
[356509933,1742589035284,-151.0,0.0003,7]
[356509934,1742589035295,-151.0,0.0003,7]
[356509935,1742589035304,-400.000009,0.0003,2]
[356509936,1742589035314,-500.0,0.0003,2]
[356509937,1742589035324,-401.0,0.0003,2]
[356509938,1742589035335,-1500.0,0.00030137,5]
[356509939,1742589035345,-302.5,0.00030238,30]
[356509940,1742589035354,-1000.0,0.00030252,2]
[356509941,1742589035364,-712.0,0.0003037,2]
[356509942,1742589035374,-199.81374303,0.000304,5]
[356509943,1742589035384,-10000.0,0.00030527,2]
[356509944,1742589035394,-153.0,0.00030548,30]
[356509945,1742589035403,-153.0,0.00030548,30]
[356509946,1742589035413,-153.0,0.00030548,30]
[356509947,1742589035423,-153.0,0.00030548,30]
[356509948,1742589035432,-153.0,0.00030548,30]
[356509949,1742589035442,-306.0,0.00030548,30]
[356509950,1742589035451,-4555.16608156,0.000306,2]
[356509951,1742589035471,-93241.83391844,0.000306,2]
[356509952,1742589035480,-151.0,0.000306,7]
[356509953,1742589035490,-300.0,0.00030625,2]
[356509954,1742589035499,-2000.0,0.00030625,2]
[356509955,1742589035508,-151.0,0.00030627,7]
[356509956,1742589035517,-69460.0,0.000309,2]
[356509957,1742589035527,-300.0,0.000309,15]
[356509958,1742589035536,-270.281216,0.0003099,7]
[356509959,1742589035546,-300.20640276,0.0003099,2]
[356509960,1742589035556,-172011.6829589,0.00031,15]
[356510026,1742590232631,-177.10636203,0.00024703,2]
[356510027,1742590232641,-237.40972435,0.00025408,2]
[356510028,1742590232651,-150.0,0.00026601,2]
[356510029,1742590232661,-8267.5858546,0.00026602,2]
[356510030,1742590232670,-500.0,0.00027397,5]
[356510031,1742590232679,-418.02116171,0.00027504,2]
[356510032,1742590232689,-834.1406796,0.00027741,2]
[356510033,1742590232699,-244.93822164,0.0002777,2]
[356510034,1742590232708,-1151.80881108,0.0002777,2]
[356510035,1742590232719,-3626.54564473,0.00027773,2]
[356510036,1742590232729,-3000.0,0.0002779,2]
[356510037,1742590232738,-500.0,0.0002779,2]
[356510039,1742590232747,-160.0,0.00027836,2]
[356510041,1742590232757,-600.0,0.00027863,2]
[356510042,1742590232767,-153.08483521,0.00027869,2]
[356510043,1742590232776,-459.8387477,0.00027869,2]
[356510044,1742590232786,-121990.671374,0.0002787,2]
[356510045,1742590232795,-542.41003302,0.00027873,5]
[356510046,1742590232804,-500.0,0.00027873,5]
[356510047,1742590232814,-591.20069898,0.00027873,5]
[356510048,1742590232823,-152.08404903,0.00027873,5]
[356510049,1742590232833,-500.0,0.00027873,2]
[356510050,1742590232843,-535.23093492,0.00027873,5]
[356510051,1742590232852,-500.0,0.00027873,5]
[356510052,1742590232862,-500.0,0.00027873,5]
[356510053,1742590232872,-150.241841,0.00027873,5]
[356510054,1742590232882,-500.0,0.00027873,5]
[356510055,1742590232893,-500.0,0.00027873,5]
[356510056,1742590232903,-500.0,0.00027873,5]
[356510057,1742590232917,-500.0,0.00027873,5]
[356510058,1742590232926,-151.0,0.00027873,2]
[356510059,1742590232936,-1000.0,0.00027873,2]
[356510060,1742590232945,-243981.342747,0.0002788,2]
[356510061,1742590232957,-222000.0,0.0002789,2]
[356510062,1742590232967,-500.0,0.000279,5]
[356510063,1742590232982,-500.0,0.000279,5]
[356510064,1742590232993,-500.0,0.000279,5]
[356510065,1742590233003,-500.0,0.000279,5]
[356510066,1742590233012,-199.81374303,0.000279,4]
[356510067,1742590233022,-500.0,0.000279,5]
[356510068,1742590233031,-500.0,0.000279,5]
[356510069,1742590233041,-500.0,0.000279,5]
[356510070,1742590233050,-500.0,0.000279,5]
[356510071,1742590233060,-500.0,0.000279,3]
[356510072,1742590233069,-220.21503336,0.000279,5]
[356510073,1742590233079,-225.2848583,0.000279,5]
[356510074,1742590233088,-500.0,0.000279,5]
[356510075,1742590233098,-563.07415017,0.000279,5]
[356510076,1742590233108,-500.0,0.000279,5]
[356510077,1742590233117,-500.0,0.000279,5]
[356510078,1742590233127,-500.0,0.000279,5]
[356510079,1742590233137,-500.0,0.000279,5]
[356510080,1742590233146,-160.93343786,0.000279,5]
[356510081,1742590233156,-500.0,0.000279,5]
[356510082,1742590233166,-500.0,0.000279,5]
[356510083,1742590233176,-500.0,0.000279,5]
[356510084,1742590233186,-500.0,0.000279,5]
[356510085,1742590233195,-500.0,0.000279,5]
[356510086,1742590233205,-500.0,0.000279,5]
[356510087,1742590233214,-500.0,0.000279,5]
[356510088,1742590233225,-151.7520199,0.000279,5]
[356510089,1742590233235,-500.0,0.000279,5]
[356510090,1742590233244,-500.0,0.000279,5]
[356510091,1742590233253,-500.0,0.000279,5]
[356510092,1742590233263,-500.0,0.000279,5]
[356510093,1742590233272,-500.0,0.000279,5]
[356510094,1742590233282,-500.0,0.000279,5]
[356510095,1742590233292,-500.0,0.000279,5]
[356510096,1742590233301,-500.25576801,0.000279,5]
[356510097,1742590233311,-500.0,0.000279,5]
[356510098,1742590233320,-500.0,0.000279,5]
[356510099,1742590233329,-43249.6782011,0.00027913,2]
[356510100,1742590233339,-622.2,0.00027918,2]
[356510101,1742590233349,-645.2214,0.00027973,2]
[356510102,1742590233358,-669.0945918,0.00028028,2]
[356510103,1742590233368,-693.8510917,0.00028083,2]
[356510104,1742590233377,-719.52358209,0.00028138,2]
[356510105,1742590233386,-746.14595463,0.00028193,2]
[356510106,1742590233396,-773.75335495,0.00028248,2]
[356510107,1742590233405,-802.38222908,0.00028303,2]
[356510108,1742590233415,-832.07037156,0.00028358,2]
[356510109,1742590233425,-167.967719,0.00028421,2]
[356510110,1742590233434,-1000.0,0.00028767,5]
[356510111,1742590233444,-3626.54564472,0.00028801,2]
[356510112,1742590233454,-541.0,0.00028857,2]
[356510113,1742590233464,-1913.0,0.00028857,2]
[356510114,1742590233474,-2269.0,0.00028857,2]
[356510115,1742590233484,-1000.0,0.00029242,2]
[356510116,1742590233493,-300.0,0.000294,14]
[356510117,1742590233503,-672.17,0.000295,2]
[356510118,1742590233513,-600.0,0.0002975,2]
[356510119,1742590233523,-3626.54564472,0.00029829,2]
[356510120,1742590233532,-199.81374303,0.000299,5]
[356510121,1742590233542,-251.0,0.0003,2]
[356510122,1742590233552,-221.9946264,0.0003006,4]
[356510123,1742590233561,-600.0,0.0003006,2]
[356510124,1742590233571,-1500.0,0.00030137,5]
[356510125,1742590233580,-600.0,0.0003037,2]
[356510126,1742590233590,-153.0,0.00030548,30]
[356510127,1742590233599,-153.0,0.00030548,30]
[356510128,1742590233609,-153.0,0.00030548,30]
[356510129,1742590233619,-153.0,0.00030548,30]
[356510130,1742590233628,-600.0,0.0003068,2]
[356510131,1742590233638,-160.4474878,0.00030795,30]
[356510132,1742590233648,-3626.54564472,0.00030857,2]
[356510133,1742590233658,-300.0,0.000309,15]
[356510134,1742590233668,-165.58475678,0.00030989,2]
[356510135,1742590233677,-605.62728348,0.0003099,2]
[356510136,1742590233687,-28788.85257029,0.00031,15]
[356510137,1742590233696,-3131.572,0.00031,2]
[356510138,1742590233706,-205.0,0.0003101,30]
[356510139,1742590233717,-500.0,0.00031057,2]
[356510140,1742590233727,-249.8,0.000311,4]
[356510141,1742590233736,-300.0,0.00031289,2]
[356510142,1742590233746,-2000.0,0.00031289,2]
[356510143,1742590233755,-2000.0,0.00031507,5]
[356510144,1742590233765,-524.91063211,0.00031549,2]
[356510145,1742590233774,-205.0,0.0003163,30]
[356510146,1742590233783,-530.179,0.00031857,2]
[356510147,1742590233793,-168.698,0.00031872,2]
[356510148,1742590233803,-253.31075,0.00031872,2]
[356510149,1742590233858,-3626.54564472,0.00031884,2]
[356510150,1742590233868,-199.81374303,0.000319,6]
[356510151,1742590233877,-2000.0,0.00032,15]
[356510152,1742590233887,-2000.0,0.00032,31]
[356510153,1742590233896,-151.02108101,0.00032,120]
[356510154,1742590233907,-456.83420196,0.00032,7]
[356510155,1742590233918,-14174.934795,0.00032,2]
[356510156,1742590233927,-1000.0,0.00032,120]
[356510157,1742590233936,-200.0,0.00032,120]
[356510158,1742590233946,-970.80032786,0.00032,7]
[356510159,1742590233955,-30000.0,0.00032096,3]
[356510160,1742590233964,-160.0,0.00032096,3]
[356510161,1742590233974,-579.99150246,0.00032096,3]
[356510162,1742590233983,-418.02116171,0.00032096,3]
[356510163,1742590233995,-12000.0,0.000321,10]
[356510164,1742590234006,-50000.0,0.000322,10]
[356510165,1742590234015,-30000.0,0.000322,7]
[356510166,1742590234024,-150.15,0.000322,10]
[356510167,1742590234034,-160.0,0.000322,7]
[356510168,1742590234043,-150.15,0.000322,10]
[356510169,1742590234052,-150.15,0.00032227,10]
[356510170,1742590234061,-205.0,0.0003225,30]
[356510171,1742590234070,-150.15,0.00032255,10]
[356510172,1742590234080,-150.15,0.00032282,10]
[356510173,1742590234090,-164.232265,0.0003231,10]
[356510174,1742590234099,-15000.0,0.00032329,5]
[356510175,1742590234108,-2000.0,0.000324,30]
[356510176,1742590234117,-300.0,0.000324,16]
[356510177,1742590234127,-2000.0,0.000325,15]
[356510178,1742590234136,-2000.0,0.000325,15]
[356510179,1742590234146,-500.0,0.000325,15]
[356510180,1742590234155,-7536.0,0.000325,120]
[356510181,1742590234165,-1589.0,0.000325,30]
[356510182,1742590234174,-39495.15968665,0.00032547,2]
[356510183,1742590234184,-151.0,0.00032547,7]
[356510184,1742590234193,-22907.34126498,0.00032547,2]
[356510185,1742590234203,-561.62,0.000327,31]
[356510186,1742590234212,-561.62,0.000327,31]
[356510187,1742590234221,-561.62,0.000327,31]
[356510188,1742590234230,-561.62,0.000327,31]
[356510189,1742590234240,-561.62,0.000327,31]
[356510190,1742590234249,-561.62,0.000327,31]
[356510191,1742590234258,-561.62,0.000327,31]
[356510192,1742590234267,-561.62,0.000327,31]
[356510193,1742590234277,-561.62,0.000327,31]
[356510194,1742590234286,-561.62,0.000327,31]
[356510195,1742590234295,-561.62,0.000327,31]
[356510196,1742590234305,-561.62,0.000327,31]
[356510197,1742590234314,-2000.0,0.0003275,15]
[356510198,1742590234323,-2000.0,0.0003275,15]